fUSD/lending_fUSD_20260601
["ID","MTS","AMOUNT","RATE_DAILY","PERIOD"]
[423585349,1780249874000,-207.5,0.00037102,120]
[423585354,1780249874000,-2074.1544,0.00037181,2]
[423585411,1780249875000,-150.0,0.00037449,2]
[423585409,1780249875000,-400.0,0.00037449,2]
[423585415,1780249875000,-2074.1544,0.00037479,2]
[423585426,1780249875000,-1685.08,0.000376,120]
[423585428,1780249875000,-34745.0,0.000376,30]
[423585421,1780249875000,-1590.0,0.00037539,11]
[423585427,1780249875000,-1845.3599,0.000376,60]
[423585425,1780249875000,-1685.08,0.000376,120]
[423585416,1780249875000,-3202.0,0.000375,30]
[423585424,1780249875000,-1685.08,0.000376,120]
[423585423,1780249875000,-4418.38246396,0.0003759,2]
[423585420,1780249875000,-2319.0,0.00037539,11]
[423585418,1780249875000,-6035.438,0.00037501,2]
[423585419,1780249875000,-2000.0,0.00037521,120]
[423585429,1780249875000,-150.0,0.00037623,120]
[423585434,1780249875000,-2000.0,0.00037655,120]
[423585435,1780249875000,-1585.14,0.00037655,2]
[423585433,1780249875000,-7764.55,0.00037637,30]
[423585440,1780249875000,-1585.14,0.00037655,2]
[423585441,1780249875000,-1585.14,0.00037655,2]
[423585422,1780249875000,-8039.84873938,0.00037568,2]
[423585413,1780249875000,-216.89957659,0.00037456,120]
[423585400,1780249875000,-250.0,0.00037373,2]
[423585412,1780249875000,-150.0,0.00037449,2]
[423585430,1780249875000,-6035.4383,0.00037629,2]
[423585392,1780249875000,-5000.0,0.00037373,2]
[423585390,1780249875000,-5000.0,0.00037373,2]
[423585391,1780249875000,-5000.0,0.00037373,2]
[423585394,1780249875000,-250.0,0.00037373,2]
[423585389,1780249875000,-5000.0,0.00037373,2]
[423585393,1780249875000,-5000.0,0.00037373,2]
[423585396,1780249875000,-250.0,0.00037373,2]
[423585399,1780249875000,-250.0,0.00037373,2]
[423585405,1780249875000,-436.5,0.00037431,120]
[423585414,1780249875000,-157.99575143,0.00037456,2]
[423585395,1780249875000,-250.0,0.00037373,2]
[423585404,1780249875000,-411.76470588,0.0003743,30]
[423585397,1780249875000,-250.0,0.00037373,2]
[423585403,1780249875000,-411.76470588,0.0003743,30]
[423585406,1780249875000,-355.62968569,0.00037431,14]
[423585398,1780249875000,-250.0,0.00037373,2]
[423585401,1780249875000,-220.1916934,0.0003738,2]
[423585410,1780249875000,-407.0,0.00037449,2]
[423585407,1780249875000,-592.0,0.00037431,3]
[423585417,1780249875000,-1520.24509226,0.000375,7]
[423585408,1780249875000,-160.15205963,0.00037449,2]
[423585402,1780249875000,-2000.0,0.00037387,120]
[423585438,1780249875000,-1585.14,0.00037655,2]
[423585460,1780249875000,-1273.0,0.00037719,2]
[423585431,1780249875000,-2074.1548,0.00037629,2]
[423585462,1780249875000,-932.0,0.00037719,2]
[423585464,1780249875000,-1585.14,0.0003773,2]
[423585465,1780249875000,-1585.14,0.0003773,2]
[423585468,1780249875000,-1585.14,0.0003773,2]
[423585432,1780249875000,-260.6164,0.00037629,2]
[423585479,1780249875000,-1585.14,0.00037732,2]
[423585469,1780249875000,-1585.14,0.0003773,2]
[423585470,1780249875000,-1585.14,0.0003773,2]
[423585472,1780249875000,-1585.14,0.0003773,2]
[423585473,1780249875000,-1585.14,0.00037732,2]
[423585478,1780249875000,-1585.14,0.00037732,2]
[423585475,1780249875000,-1064.99,0.00037732,2]
[423585474,1780249875000,-1585.14,0.00037732,2]
[423585477,1780249875000,-1585.14,0.00037732,2]
[423585476,1780249875000,-1585.14,0.00037732,2]
[423585482,1780249875000,-5000.0,0.00037771,2]
[423585480,1780249875000,-5000.0,0.00037771,2]
[423585481,1780249875000,-5000.0,0.00037771,2]
[423585483,1780249875000,-5000.0,0.00037771,2]
[423585484,1780249875000,-5000.0,0.00037771,2]
[423585485,1780249875000,-4590.57683934,0.00037771,2]
[423585459,1780249875000,-1356.0,0.00037719,2]
[423585461,1780249875000,-525.0,0.00037719,2]
[423585471,1780249875000,-1585.14,0.0003773,2]
[423585463,1780249875000,-157.99575143,0.0003773,2]
[423585439,1780249875000,-1585.14,0.00037655,2]
[423585437,1780249875000,-1585.14,0.00037655,2]
[423585442,1780249875000,-1585.14,0.00037655,2]
[423585436,1780249875000,-1585.14,0.00037655,2]
[423585457,1780249875000,-150.0,0.00037694,2]
[423585444,1780249875000,-1585.14,0.00037655,2]
[423585454,1780249875000,-1585.14,0.00037668,2]
[423585453,1780249875000,-1585.14,0.00037668,2]
[423585452,1780249875000,-1585.14,0.00037668,2]
[423585443,1780249875000,-1585.14,0.00037655,2]
[423585445,1780249875000,-1585.14,0.00037655,2]
[423585447,1780249875000,-1585.14,0.00037663,2]
[423585446,1780249875000,-1585.14,0.00037663,2]
[423585448,1780249875000,-1585.14,0.00037663,2]
[423585450,1780249875000,-1585.14,0.00037667,2]
[423585449,1780249875000,-1585.14,0.00037667,2]
[423585456,1780249875000,-1585.14,0.00037684,2]
[423585467,1780249875000,-1585.14,0.0003773,2]
[423585466,1780249875000,-1585.14,0.0003773,2]
[423585455,1780249875000,-1585.14,0.00037684,2]
[423585458,1780249875000,-3550.0,0.00037719,2]
[423585451,1780249875000,-1585.14,0.00037667,2]
[423585495,1780249877000,-168.51463,0.0003,7]
[423585496,1780249877000,-385.89,0.00030137,2]
[423585494,1780249877000,-168.51463,0.0003,7]
[423585493,1780249877000,-106.01878963,0.00028971,2]
[423585491,1780249877000,-490.0,0.00021,7]
[423585486,1780249877000,-385.89,0.00024658,2]
[423585488,1780249877000,-271.78,0.00027397,2]
[423585490,1780249877000,-82.6286107,0.00028971,2]
[423585487,1780249877000,-114.11,0.00027397,2]
[423585489,1780249877000,-168.51463,0.00027397,2]
[423585498,1780249877000,-168.51463,0.00032,7]
[423585492,1780249877000,-168.51463,0.00027397,2]
[423585508,1780249877000,-168.51463,0.00036,7]
[423585511,1780249877000,-250.0,0.00037771,2]
[423585509,1780249877000,-168.51463,0.00036,7]
[423585499,1780249877000,-168.51463,0.00032,7]
[423585512,1780249877000,-250.0,0.00037771,2]
[423585510,1780249877000,-409.42316066,0.00037771,2]
[423585504,1780249877000,-168.51463,0.000349,7]
[423585507,1780249877000,-385.89,0.00035616,2]
[423585502,1780249877000,-188.64740032,0.00034186,2]
[423585506,1780249877000,-578.77492127,0.00035459,2]
[423585503,1780249877000,-168.51463,0.000349,7]
[423585500,1780249877000,-168.51463,0.00032,7]
[423585501,1780249877000,-385.89,0.00032877,2]
[423585497,1780249877000,-188.64740033,0.00031578,2]
[423585505,1780249877000,-300.0,0.00035459,2]
[423585539,1780249878000,-656.0,0.00037816,13]
[423585532,1780249878000,-418.0,0.00025719,2]
[423585531,1780249878000,-4725.49484765,0.00023934,2]
[423585538,1780249878000,-350.0,0.00037808,5]
[423585534,1780249878000,-1000.0,0.00028268,2]
[423585536,1780249878000,-1379.9115479,0.00035929,2]
[423585545,1780249878000,-189.54230212,0.00037878,2]
[423585537,1780249878000,-1568.975921,0.000378,120]
[423585540,1780249878000,-150.0,0.00037834,2]
[423585552,1780249878000,-5000.0,0.00037901,2]
[423585542,1780249878000,-928.0242,0.00037846,30]
[423585547,1780249878000,-163.24123832,0.00037884,2]
[423585529,1780249878000,-362.54697115,0.00023934,2]
[423585533,1780249878000,-367.0,0.00028028,10]
[423585530,1780249878000,-1096.2926835,0.00023934,2]
[423585521,1780249878000,-411.62336901,0.00037788,120]
[423585527,1780249878000,-418.0,0.00019719,2]
[423585513,1780249878000,-250.0,0.00037771,2]
[423585514,1780249878000,-250.0,0.00037771,2]
[423585515,1780249878000,-250.0,0.00037771,2]
[423585516,1780249878000,-250.0,0.00037771,2]
[423585517,1780249878000,-773.26492408,0.00037788,120]
[423585519,1780249878000,-815.11170691,0.00037788,120]
[423585528,1780249878000,-418.0,0.00022719,2]
[423585518,1780249878000,-168.51463,0.000349,7]
[423585522,1780249878000,-431.024079,0.000378,120]
[423585544,1780249878000,-197.69547605,0.00037872,2]
[423585523,1780249878000,490.0,0.0002456,10]
[423585524,1780249878000,418.0,0.00016719,2]
[423585525,1780249878000,4092.01,0.00010859,2]
[423585526,1780249878000,-495.45302885,0.00010859,2]
[423585520,1780249878000,-168.514621,0.00036,7]
[423585548,1780249878000,-163.5330774,0.00037886,2]
[423585535,1780249878000,-452.85549676,0.00035459,2]
[423585553,1780249878000,-171.10693942,0.00037907,2]
[423585567,1780249878000,-223.0,0.00038,120]
[423585577,1780249878000,-171.10693942,0.00038001,2]
[423585568,1780249878000,-153.0,0.00038,120]
[423585566,1780249878000,-238920.18553568,0.00038,2]
[423585579,1780249878000,-81211.50946484,0.00038038,7]
[423585574,1780249878000,-500.0,0.00038,120]
[423585569,1780249878000,-380.0,0.00038,7]
[423585571,1780249878000,-604.0,0.00038,120]
[423585570,1780249878000,-45320.0,0.00038,30]
[423585572,1780249878000,-5146.0,0.00038,120]
[423585575,1780249878000,-850.0,0.00038,2]
[423585573,1780249878000,-300.0,0.00038,120]
[423585576,1780249878000,-690.0,0.00038,30]
[423585550,1780249878000,-158.15638084,0.00037901,2]
[423585581,1780249878000,-197.69547605,0.00038072,2]
[423585578,1780249878000,-157.99575143,0.00038004,2]
[423585565,1780249878000,-5000.0,0.00038,2]
[423585580,1780249878000,-2000.0,0.00038055,120]
[423585563,1780249878000,-336.53606039,0.00038,50]
[423585561,1780249878000,-250.0,0.00038,7]
[423585551,1780249878000,-171.10693942,0.00037901,2]
[423585543,1780249878000,-168.9683086,0.00037871,2]
[423585546,1780249878000,-206.0321418,0.0003788,2]
[423585549,1780249878000,-305.6,0.000379,120]
[423585556,1780249878000,-189.54230212,0.00037978,2]
[423585557,1780249878000,-163.24123832,0.00037984,2]
[423585541,1780249878000,-387.27,0.0003784,86]
[423585559,1780249878000,-424.4348,0.00038,120]
[423585555,1780249878000,-197.69547605,0.00037972,2]
[423585558,1780249878000,-824.97610607,0.00038,3]
[423585560,1780249878000,-5432.51705415,0.00038,2]
[423585564,1780249878000,-4731.61209579,0.00038,30]
[423585554,1780249878000,-2000.0,0.00037922,120]
[423585562,1780249878000,-742.0,0.00038,15]
[423585611,1780249879000,-4482.83708081,0.00038161,2]
[423585593,1780249879000,-2000.0,0.00038104,30]
[423585596,1780249879000,-842.8,0.00038125,30]
[423585594,1780249879000,-2000.0,0.00038104,30]
[423585595,1780249879000,-1695.5,0.00038104,30]
[423585605,1780249879000,-5000.0,0.00038152,2]
[423585607,1780249879000,-5000.0,0.00038152,2]
[423585604,1780249879000,-5000.0,0.00038152,2]
[423585606,1780249879000,-5000.0,0.00038152,2]
[423585612,1780249879000,-152.0,0.00038165,7]
[423585613,1780249879000,-153.92382139,0.00038165,5]
[423585608,1780249879000,-5631.98701052,0.00038152,2]
[423585601,1780249879000,-9056.199,0.00038137,60]
[423585615,1780249879000,-152.0,0.00038165,5]
[423585599,1780249879000,-827.99,0.00038128,2]
[423585589,1780249879000,-2000.0,0.00038104,30]
[423585600,1780249879000,-248.4,0.00038128,2]
[423585598,1780249879000,-293.27,0.00038128,30]
[423585597,1780249879000,-150.0,0.00038127,120]
[423585591,1780249879000,-2000.0,0.00038104,30]
[423585592,1780249879000,-2000.0,0.00038104,30]
[423585587,1780249879000,-2000.0,0.00038104,30]
[423585588,1780249879000,-2000.0,0.00038104,30]
[423585586,1780249879000,-171.10693942,0.00038101,2]
[423585582,1780249879000,-163.24123832,0.00038084,2]
[423585583,1780249879000,-150.0,0.00038086,120]
[423585590,1780249879000,-2000.0,0.00038104,30]
[423585585,1780249879000,-263.98253218,0.000381,33]
[423585584,1780249879000,-1459.96,0.00038089,2]
[423585609,1780249879000,-2319.0,0.00038159,11]
[423585603,1780249879000,-5000.0,0.00038152,2]
[423585610,1780249879000,-7000.94199019,0.00038161,2]
[423585602,1780249879000,-150.0,0.00038145,120]
[423585626,1780249879000,-197.69547605,0.00038172,2]
[423585647,1780249879000,-570.78558648,0.000382,120]
[423585645,1780249879000,-1745.92675268,0.000382,120]
[423585644,1780249879000,-1365.80933033,0.000382,120]
[423585646,1780249879000,-1031.1091675,0.000382,120]
[423585642,1780249879000,-2748.93620486,0.000382,120]
[423585636,1780249879000,-1209.95481554,0.000382,120]
[423585637,1780249879000,-1246.78651759,0.000382,120]
[423585634,1780249879000,-46608.58,0.000382,2]
[423585632,1780249879000,-468.13,0.000382,2]
[423585639,1780249879000,-1264.05597453,0.000382,120]
[423585640,1780249879000,-1895.06952573,0.000382,120]
[423585635,1780249879000,-3202.83,0.000382,2]
[423585641,1780249879000,-1274.77062071,0.000382,120]
[423585633,1780249879000,-8576.33,0.000382,2]
[423585638,1780249879000,-1175.6212355,0.000382,120]
[423585631,1780249879000,-163.0,0.00038194,11]
[423585629,1780249879000,-163.24123832,0.00038184,2]
[423585627,1780249879000,-1590.0,0.00038179,11]
[423585616,1780249879000,-5000.0,0.00038169,2]
[423585618,1780249879000,-5000.0,0.00038169,2]
[423585622,1780249879000,-250.0,0.00038169,2]
[423585624,1780249879000,-250.0,0.00038169,2]
[423585625,1780249879000,-250.0,0.00038169,2]
[423585619,1780249879000,-5000.0,0.00038169,2]
[423585620,1780249879000,-5000.0,0.00038169,2]
[423585621,1780249879000,-250.0,0.00038169,2]
[423585643,1780249879000,-3333.57105101,0.000382,120]
[423585628,1780249879000,-1590.0,0.00038179,11]
[423585623,1780249879000,-250.0,0.00038169,2]
[423585630,1780249879000,-2000.0,0.00038189,120]
[423585617,1780249879000,-5000.0,0.00038169,2]
[423585614,1780249879000,-152.0,0.00038165,5]
[423585651,1780250016000,-4587.46302884,0.00010726,2]
[423585652,1780250017000,-4587.46302884,0.00010726,2]
[423585653,1780250017000,-4587.46302884,0.00010726,2]
[423585654,1780250018000,-4587.46302884,0.00010726,2]
[423585655,1780250019000,-4587.46302884,0.00010726,2]
[423585656,1780250021000,-4587.46302884,0.00010726,2]
[423585659,1780250022000,-4587.46302884,0.00010726,2]
[423585658,1780250022000,-4587.46302884,0.00010726,2]
[423585657,1780250022000,-4587.46302884,0.00010726,2]
[423585660,1780250023000,-4587.46302884,0.00010726,2]
[423585662,1780250072000,756.01527615,9.925e-05,2]
[423585661,1780250072000,804.35475967,9.926e-05,2]
[423585664,1780250114000,180.16174109,9.925e-05,2]
[423585663,1780250114000,191.20986055,9.926e-05,2]
[423585665,1780250119000,1459.141433,0.00025538,120]
[423585666,1780250156000,577.754173,0.00024333,120]
[423585670,1780250508000,582.23,0.00030136,120]
[423585671,1780250551000,158.11,0.00027397,120]
[423585672,1780250573000,1438.75,0.00030136,120]
[423585673,1780250574000,1438.75,0.00030136,120]
[423585674,1780250574000,1438.75,0.00030136,120]
[423585675,1780250574000,1438.75,0.00030136,120]
[423585676,1780250575000,1438.75,0.00030136,120]
[423585679,1780250786000,1000.0,9.928e-05,2]
[423585680,1780250799000,-303.8017337,0.000103,2]
[423585681,1780250821000,1144.92,9.953e-05,2]
[423585682,1780250881000,165.68,0.00028973,120]
[423585687,1780250885000,1107.72,9.587e-05,2]
[423585686,1780250885000,1107.72,9.535e-05,2]
[423585685,1780250885000,1107.72,9.483e-05,2]
[423585684,1780250885000,1107.72,9.431e-05,2]
[423585683,1780250885000,1107.72,9.379e-05,2]
[423585691,1780250886000,1107.72,9.795e-05,2]
[423585690,1780250886000,1107.72,9.743e-05,2]
[423585689,1780250886000,1107.72,9.691e-05,2]
[423585688,1780250886000,1107.72,9.639e-05,2]
[423585692,1780250887000,1107.72,9.847e-05,2]
[423585694,1780250887000,1107.72,9.951e-05,2]
[423585693,1780250887000,1107.72,9.899e-05,2]
[423585696,1780250946000,1467.87,9.622e-05,2]
[423585697,1780250950000,178.24,9.622e-05,2]
[423585698,1780250962000,2000.0,9.623e-05,2]
[423585728,1780251032000,-1107.72,0.00010315,2]
[423585726,1780251032000,-163.57,0.000103,2]
[423585727,1780251032000,-1200.0,0.00010314,2]
[423585724,1780251032000,-343.69858115,0.00010263,2]
[423585723,1780251032000,-764.02141885,0.00010263,2]
[423585721,1780251032000,-1107.72,0.00010159,2]
[423585720,1780251032000,-227.91858115,0.00010107,2]
[423585729,1780251032000,-779.95,0.00010352,2]
[423585719,1780251032000,-676.9659404,0.00010107,2]
[423585718,1780251032000,-202.83547845,0.00010107,2]
[423585717,1780251032000,-1107.72,0.00010055,2]
[423585715,1780251032000,-1107.72,0.00010003,2]
[423585714,1780251032000,-159.65,0.00010001,2]
[423585722,1780251032000,-1107.72,0.00010211,2]
[423585725,1780251032000,-97.1448203,0.000103,2]
[423585716,1780251032000,-209.17060647,0.00010019,2]
[423585730,1780251032000,-300.0,0.00010366,2]
[423585733,1780251032000,-324.6,0.00010422,2]
[423585745,1780251032000,-1857.55759253,0.00010626,2]
[423585742,1780251032000,-2250.37276814,0.00010626,2]
[423585743,1780251032000,-455.93014566,0.00010626,2]
[423585739,1780251032000,-344.81306968,0.00010626,2]
[423585741,1780251032000,-408.32694597,0.00010626,2]
[423585738,1780251032000,-308.64507448,0.00010626,2]
[423585746,1780251032000,-60728.54078582,0.00010626,2]
[423585736,1780251032000,-370.99064405,0.00010616,2]
[423585737,1780251032000,-150.0,0.00010625,2]
[423585734,1780251032000,-165.02,0.00010481,2]
[423585735,1780251032000,-165.62774789,0.00010616,2]
[423585731,1780251032000,-300.0,0.00010366,2]
[423585732,1780251032000,-1107.72,0.00010367,2]
[423585740,1780251032000,-2539.32212326,0.00010626,2]
[423585776,1780251038000,-500.0,0.00010625,2]
[423585774,1780251038000,-500.0,0.00010625,2]
[423585781,1780251038000,-500.0,0.00010625,2]
[423585780,1780251038000,-500.0,0.00010625,2]
[423585775,1780251038000,-500.0,0.00010625,2]
[423585779,1780251038000,-500.0,0.00010625,2]
[423585771,1780251038000,-590.38333577,0.00010625,2]
[423585782,1780251038000,-500.0,0.00010625,2]
[423585783,1780251038000,-500.0,0.00010625,2]
[423585784,1780251038000,-500.0,0.00010625,2]
[423585785,1780251038000,-1431106.49149446,0.00010626,2]
[423585773,1780251038000,-500.0,0.00010625,2]
[423585777,1780251038000,-500.0,0.00010625,2]
[423585778,1780251038000,-500.0,0.00010625,2]
[423585764,1780251038000,-392.21237294,0.00010625,2]
[423585770,1780251038000,-500.0,0.00010625,2]
[423585769,1780251038000,-500.0,0.00010625,2]
[423585768,1780251038000,-500.0,0.00010625,2]
[423585788,1780251038000,-324.6,0.00010683,2]
[423585766,1780251038000,-268.11458384,0.00010625,2]
[423585767,1780251038000,-231.88541616,0.00010625,2]
[423585765,1780251038000,-326.88017879,0.00010625,2]
[423585761,1780251038000,-359.84842518,0.00010625,2]
[423585763,1780251038000,-500.0,0.00010625,2]
[423585762,1780251038000,-140.15157482,0.00010625,2]
[423585760,1780251038000,-159.14557482,0.00010625,2]
[423585759,1780251038000,-340.85442518,0.00010625,2]
[423585757,1780251038000,-181.1362388,0.00010625,2]
[423585758,1780251038000,-150.1028361,0.00010625,2]
[423585772,1780251038000,-500.0,0.00010625,2]
[423585787,1780251038000,-459.44198478,0.00010631,2]
[423585822,1780251038000,-25191.52487283,0.00011099,2]
[423585789,1780251038000,-215.61611719,0.000107,2]
[423585786,1780251038000,-436.55876004,0.00010627,2]
[423585833,1780251038000,-324.6,0.00011465,2]
[423585839,1780251038000,-24208.3,0.00011726,2]
[423585843,1780251038000,-2000.0,0.00012029,2]
[423585841,1780251038000,-34244.00700815,0.00011729,2]
[423585831,1780251038000,-300.0,0.00011398,2]
[423585829,1780251038000,-324.6,0.00011204,2]
[423585826,1780251038000,-104308.35089259,0.00011164,2]
[423585824,1780251038000,-300.0,0.00011163,2]
[423585837,1780251038000,-255.0,0.00011656,2]
[423585835,1780251038000,-779.95,0.00011646,2]
[423585820,1780251038000,-34244.00700816,0.00011099,2]
[423585815,1780251038000,-250.0,0.00011001,2]
[423585818,1780251038000,-300.0,0.00011098,2]
[423585845,1780251038000,-25191.52487283,0.00012063,2]
[423585801,1780251038000,-8644.49975263,0.000109,2]
[423585793,1780251038000,-184.861,0.00010725,2]
[423585790,1780251038000,-151.0,0.00010723,2]
[423585791,1780251038000,-151.0,0.00010724,2]
[423585794,1780251038000,-15297.92490228,0.00010725,2]
[423585807,1780251038000,-257.38,0.00010989,2]
[423585795,1780251038000,-150.0,0.00010726,2]
[423585792,1780251038000,-2308.182,0.00010725,2]
[423585799,1780251038000,-2000.0,0.00010826,2]
[423585809,1780251038000,-363.3,0.00010989,2]
[423585811,1780251038000,-391.2,0.00010989,2]
[423585803,1780251038000,-324.6,0.00010943,2]
[423585805,1780251038000,-153.23,0.00010989,2]
[423585813,1780251038000,-500.0,0.00011001,2]
[423585797,1780251038000,-1229.78214246,0.00010747,2]
[423585934,1780251039000,-639.54304457,0.00013698,2]
[423585931,1780251039000,-500.0,0.00013698,2]
[423585928,1780251039000,-500.0,0.00013698,2]
[423585929,1780251039000,-500.0,0.00013698,2]
[423585926,1780251039000,-500.0,0.00013698,2]
[423585918,1780251039000,-500.0,0.00013698,2]
[423585920,1780251039000,-500.0,0.00013698,2]
[423585922,1780251039000,-500.0,0.00013698,2]
[423585912,1780251039000,-500.0,0.00013698,2]
[423585910,1780251039000,-500.22762284,0.00013698,2]
[423585914,1780251039000,-500.0,0.00013698,2]
[423585924,1780251039000,-500.0,0.00013698,2]
[423585944,1780251039000,-422.76127402,0.00013698,2]
[423585949,1780251039000,-508.41266581,0.00013698,2]
[423585947,1780251039000,-500.0,0.00013698,2]
[423585951,1780251039000,-500.0,0.00013698,2]
[423585946,1780251039000,-500.0,0.00013698,2]
[423585935,1780251039000,-484.96,0.00013698,2]
[423585936,1780251039000,-500.0,0.00013698,2]
[423585942,1780251039000,-500.0,0.00013698,2]
[423585940,1780251039000,-500.0,0.00013698,2]
[423585953,1780251039000,-500.0,0.00013698,2]
[423585956,1780251039000,-500.0,0.00013698,2]
[423585964,1780251039000,-412.1,0.00013698,2]
[423585958,1780251039000,-500.0,0.00013698,2]
[423585916,1780251039000,-500.0,0.00013698,2]
[423585938,1780251039000,-500.0,0.00013698,2]
[423585906,1780251039000,-500.0,0.00013698,2]
[423585877,1780251039000,-500.0,0.00013698,2]
[423585903,1780251039000,-500.0,0.00013698,2]
[423585847,1780251039000,-165.02,0.00012211,2]
[423585849,1780251039000,-165.68,0.00012329,2]
[423585851,1780251039000,-34244.00700815,0.00012832,2]
[423585853,1780251039000,-779.95,0.0001294,2]
[423585865,1780251039000,-151.29500077,0.00013537,2]
[423585863,1780251039000,-150.0,0.00013537,2]
[423585855,1780251039000,-2000.0,0.00013232,2]
[423585867,1780251039000,-150.0,0.00013537,2]
[423585871,1780251039000,-150.0,0.00013537,2]
[423585859,1780251039000,-1590.0,0.000134,2]
[423585875,1780251039000,-500.0,0.00013698,2]
[423585861,1780251039000,-25191.52487283,0.00013499,2]
[423585869,1780251039000,-150.0,0.00013537,2]
[423585908,1780251039000,-508.35042822,0.00013698,2]
[423585873,1780251039000,-500.0,0.00013698,2]
[423585960,1780251039000,-500.0,0.00013698,2]
[423585891,1780251039000,-500.0,0.00013698,2]
[423585893,1780251039000,-500.0,0.00013698,2]
[423585895,1780251039000,-500.0,0.00013698,2]
[423585897,1780251039000,-500.0,0.00013698,2]
[423585879,1780251039000,-500.0,0.00013698,2]
[423585881,1780251039000,-500.0,0.00013698,2]
[423585889,1780251039000,-500.0,0.00013698,2]
[423585899,1780251039000,-500.0,0.00013698,2]
[423585901,1780251039000,-500.0,0.00013698,2]
[423585887,1780251039000,-500.0,0.00013698,2]
[423585883,1780251039000,-500.0,0.00013698,2]
[423585885,1780251039000,-499.80000009,0.00013698,2]
[423585857,1780251039000,-1590.0,0.000134,2]
[423585962,1780251039000,-500.0,0.00013698,2]
[423585933,1780251039000,-500.0,0.00013698,2]
[423585966,1780251039000,-500.0,0.00013698,2]
[423586030,1780251039000,-500.0,0.00013698,2]
[423586032,1780251039000,-263.08171548,0.00013698,2]
[423586034,1780251039000,-500.0,0.00013698,2]
[423586046,1780251039000,-544.76,0.00013698,2]
[423586048,1780251039000,-544.76,0.00013698,2]
[423586062,1780251039000,-544.76,0.00013698,2]
[423586066,1780251039000,-544.76,0.00013698,2]
[423586052,1780251039000,-544.76,0.00013698,2]
[423586056,1780251039000,-544.76,0.00013698,2]
[423586054,1780251039000,-544.76,0.00013698,2]
[423586068,1780251039000,-544.76,0.00013698,2]
[423586064,1780251039000,-544.76,0.00013698,2]
[423586050,1780251039000,-544.76,0.00013698,2]
[423586058,1780251039000,-544.76,0.00013698,2]
[423586060,1780251039000,-544.76,0.00013698,2]
[423586072,1780251039000,-1438.75,0.00013698,2]
[423586070,1780251039000,-1438.75,0.00013698,2]
[423586074,1780251039000,-1438.75,0.00013698,2]
[423586076,1780251039000,-1438.75,0.00013698,2]
[423586078,1780251039000,-1438.75,0.00013698,2]
[423586088,1780251039000,-1438.75,0.00013698,2]
[423586080,1780251039000,-1438.75,0.00013698,2]
[423586090,1780251039000,-1438.75,0.00013698,2]
[423586082,1780251039000,-1438.75,0.00013698,2]
[423586092,1780251039000,-1438.75,0.00013698,2]
[423586084,1780251039000,-1438.75,0.00013698,2]
[423585955,1780251039000,-500.0,0.00013698,2]
[423586038,1780251039000,-544.76,0.00013698,2]
[423586044,1780251039000,-544.76,0.00013698,2]
[423586086,1780251039000,-1438.75,0.00013698,2]
[423586040,1780251039000,-544.76,0.00013698,2]
[423586042,1780251039000,-544.76,0.00013698,2]
[423585968,1780251039000,-500.0,0.00013698,2]
[423585975,1780251039000,-500.0,0.00013698,2]
[423585977,1780251039000,-500.0,0.00013698,2]
[423585973,1780251039000,-500.0,0.00013698,2]
[423585994,1780251039000,-500.0,0.00013698,2]
[423585991,1780251039000,-500.0,0.00013698,2]
[423585985,1780251039000,-500.0,0.00013698,2]
[423585996,1780251039000,-500.0,0.00013698,2]